bitfinex-derivatives/quotes_BTCF0:USTF0_20250320
["timestamp","ask_amount","ask_price","bid_price","bid_amount"]
[1742479300561,0.22099166,85754.0,85753.0,0.3167583]
[1742479300763,0.22099166,85754.0,85753.0,0.2001]
[1742479301060,0.32189166,85754.0,85753.0,0.0993]
[1742479301956,0.42199166,85754.0,85753.0,0.0993]
[1742479302151,0.42199166,85754.0,85753.0,0.2159583]
[1742479302664,0.42399166,85754.0,85753.0,0.3241583]
[1742479302847,0.42399166,85754.0,85753.0,0.0993]
[1742479303054,0.42199166,85754.0,85753.0,0.0993]
[1742479303254,0.42399166,85754.0,85753.0,0.2159583]
[1742479303463,0.42399166,85754.0,85753.0,0.0993]
[1742479303761,0.42399166,85754.0,85753.0,0.2159583]
[1742479304265,0.3196569,85754.0,85753.0,0.2159583]
[1742479305365,0.1021,85754.0,85753.0,0.2159583]
[1742479305564,0.002,85754.0,85753.0,0.3171583]
[1742479305767,0.0583278,85755.0,85754.0,0.1749839]
[1742479306063,4e-05,85755.0,85754.0,0.1749839]
[1742479306259,4e-05,85755.0,85754.0,0.3765839]
[1742479306563,0.1166955,85755.0,85754.0,0.3765839]
[1742479307461,0.1166583,85753.0,85752.0,0.1266]
[1742479307662,0.1166623,85750.0,85749.0,0.1004]
[1742479307855,0.1166637,85749.0,85748.0,0.3608]
[1742479308159,0.3275637,85749.0,85748.0,0.3608]
[1742479309971,0.3295637,85749.0,85748.0,0.3608]
[1742479311268,0.3295637,85749.0,85748.0,0.5627]
[1742479311656,0.3295637,85749.0,85748.0,0.6793651]
[1742479312061,0.3295637,85749.0,85748.0,0.5627]
[1742479312662,0.3295637,85749.0,85748.0,0.6793651]
[1742479312858,0.002,85749.0,85748.0,0.6793651]
[1742479313062,0.1186637,85749.0,85748.0,0.6793651]
[1742479313857,0.2255637,85749.0,85748.0,0.6793651]
[1742479314259,0.002,85749.0,85748.0,0.6793651]
[1742479314667,0.002,85749.0,85748.0,0.8052851]
[1742479315071,0.1166637,85749.0,85748.0,0.8636176]
[1742479315269,0.1166637,85749.0,85748.0,0.68862]
[1742479315472,0.3276637,85749.0,85748.0,0.5627]
[1742479315863,0.3276637,85749.0,85748.0,0.3618]
[1742479316172,0.3276637,85749.0,85732.0,0.1044]
[1742479316173,0.0583364,85743.0,85732.0,0.2041]
[1742479316361,0.1166868,85732.0,85715.0,0.00108]
[1742479316572,0.1167032,85720.0,85719.0,0.1075]
[1742479316966,0.1167059,85718.0,85717.0,0.34550565]
[1742479317167,0.1167051,85719.0,85717.0,0.52056585]
[1742479317365,0.3608,85733.0,85717.0,0.52056585]
[1742479317366,0.1041,85734.0,85727.0,0.0583463]
[1742479317573,0.1046,85734.0,85733.0,0.1166855]
[1742479317884,0.07060704,85739.0,85738.0,0.1166787]
[1742479317885,0.11685226,85739.0,85738.0,0.1166787]
[1742479318276,0.00017496,85739.0,85738.0,0.2241787]
[1742479318466,6e-08,85739.0,85738.0,0.2241787]
[1742479318780,0.0583239,85761.0,85749.0,0.1166637]
[1742479319076,0.05833,85752.0,85749.0,0.6039037]
[1742479319372,0.29057814,85750.0,85749.0,0.6039037]
[1742479319578,0.17391584,85750.0,85749.0,0.6039037]
[1742479319871,0.17391584,85750.0,85749.0,0.7064037]
[1742479320273,0.29057814,85750.0,85749.0,0.7064037]
[1742479320479,0.17391584,85750.0,85749.0,0.7064037]
[1742479320974,0.20869901,85757.0,85756.0,0.1166542]
[1742479321165,4e-05,85770.0,85769.0,0.1166365]
[1742479321473,4e-05,85770.0,85769.0,0.6037565]
[1742479321672,0.62490207,85786.0,85776.0,0.116627]
[1742479321881,0.62490207,85786.0,85785.0,0.1166147]
[1742479322071,0.62490207,85786.0,85785.0,0.6036547]
[1742479322266,0.74151547,85786.0,85785.0,0.6036547]
[1742479322468,0.74151547,85786.0,85785.0,0.48704]
[1742479322666,0.74151547,85786.0,85785.0,0.12624]
[1742479322873,0.1166147,85785.0,85784.0,0.1166154]
[1742479323065,0.1166161,85784.0,85783.0,0.1025]
[1742479323468,0.1166243,85778.0,85777.0,0.00017485]
[1742479323671,0.1166365,85769.0,85768.0,0.00868113]
[1742479323868,0.1166447,85763.0,85762.0,0.1076]
[1742479324276,0.1166447,85763.0,85762.0,0.224246]
[1742479324572,0.1166409,85766.0,85765.0,0.1166392]
[1742479324779,0.3220406,85768.0,85767.0,0.1166392]
[1742479324975,0.3220406,85768.0,85767.0,0.4774392]
[1742479325180,0.00017485,85774.0,85767.0,0.4774392]
[1742479325181,0.1749516,85773.0,85772.0,0.1166311]
[1742479325482,0.0583156,85773.0,85772.0,0.1166311]
[1742479326166,0.1166338,85771.0,85770.0,0.0988]
[1742479326571,0.1166379,85768.0,85767.0,0.3608]
[1742479326975,0.107,85770.0,85769.0,0.1166365]
[1742479327376,0.2236351,85770.0,85767.0,0.517919]
[1742479327573,0.1029,85769.0,85768.0,0.1166379]
[1742479327781,0.2195365,85769.0,85768.0,0.1026]
[1742479327982,0.1166379,85768.0,85767.0,0.3608]
[1742479328280,0.0583207,85766.0,85759.0,0.3608]
[1742479328576,0.003,85773.0,85759.0,0.3608]
[1742479328577,0.003,85771.0,85769.0,0.1166351]
[1742479328789,0.003,85771.0,85770.0,0.3220351]
[1742479328971,0.003,85771.0,85770.0,0.6828351]
[1742479329172,0.00017485,85774.0,85770.0,0.6828351]
[1742479329173,0.00017485,85774.0,85773.0,0.1166311]
[1742479329373,0.00017485,85774.0,85773.0,0.2435511]
[1742479330479,4e-05,85777.0,85776.0,0.116627]
[1742479330677,4e-05,85781.0,85780.0,0.1166215]
[1742479330886,0.0582993,85797.0,85796.0,0.1165998]
[1742479331178,4e-05,85802.0,85801.0,0.116593]
[1742479331371,4e-05,85802.0,85801.0,0.446533]
[1742479331570,0.1166316,85802.0,85801.0,0.319493]
[1742479331777,0.2207316,85802.0,85801.0,0.446453]
[1742479332080,0.2207316,85802.0,85801.0,0.343653]
[1742479332273,0.2207316,85802.0,85801.0,0.216693]
[1742479333176,0.10414,85802.0,85801.0,0.216693]
[1742479333372,0.00104,85802.0,85801.0,0.216693]
[1742479333572,0.1176316,85802.0,85801.0,0.1001]
[1742479333773,0.3217316,85802.0,85801.0,0.1001]
[1742479333978,0.3207316,85802.0,85801.0,0.1001]
[1742479334181,0.3217316,85802.0,85801.0,0.216693]
[1742479335074,0.00104,85802.0,85801.0,0.216693]
[1742479335780,0.001,85802.0,85801.0,0.577493]
[1742479335983,0.11675544,85810.0,85809.0,0.1165821]
[1742479336280,0.11675544,85810.0,85809.0,0.6047021]
[1742479336680,0.11675544,85810.0,85809.0,0.8098021]
[1742479336889,0.0582867,85816.0,85809.0,0.8098021]
[1742479336890,0.13951582,85832.0,85817.0,0.1165713]
[1742479337180,0.1165677,85820.0,85817.0,0.4773713]
[1742479337383,0.00064,85835.0,85824.0,0.0582795]
[1742479337591,0.1165438,85840.0,85839.0,0.0582697]
[1742479337779,0.1165414,85839.0,85838.0,0.1008]
[1742479338081,0.1165414,85839.0,85838.0,0.2173427]
[1742479338772,0.1165414,85839.0,85838.0,0.3172427]
[1742479339286,0.1079,85841.0,85840.0,0.11654]
[1742479339472,0.1748041,85843.0,85842.0,0.1165346]
[1742479339676,0.1748041,85843.0,85842.0,0.3214346]
[1742479340375,0.1748041,85843.0,85842.0,0.4487946]
[1742479340774,0.1748041,85843.0,85842.0,0.33226]
[1742479340982,0.1748041,85843.0,85842.0,0.4487973]
[1742479341483,0.1778041,85843.0,85842.0,0.4487973]
[1742479341681,0.0612681,85843.0,85842.0,0.4487973]
[1742479341887,0.0612681,85843.0,85842.0,0.3214373]
[1742479342077,0.003,85843.0,85842.0,0.3214373]
[1742479342293,0.1166055,85852.0,85851.0,0.1165251]
[1742479342873,0.2200055,85852.0,85851.0,0.1165251]
[1742479343197,0.1165305,85847.0,85846.0,0.3608]
[1742479343576,0.1748255,85834.0,85826.0,0.95742]
[1742479343775,0.1165463,85836.0,85835.0,0.1165455]
[1742479343991,0.1165463,85836.0,85835.0,0.3224455]
[1742479344187,0.2199463,85836.0,85835.0,0.3224455]
[1742479344587,0.2199463,85836.0,85835.0,0.2196455]
[1742479344983,0.0582754,85833.0,85826.0,0.001]
[1742479345182,0.1165522,85831.0,85830.0,0.47752694]
[1742479345583,0.0582722,85837.0,85834.0,0.0582734]
[1742479345785,0.0582722,85837.0,85836.0,0.1165455]
[1742479346089,0.0582718,85840.0,85839.0,0.1748011]
[1742479346392,0.0582718,85840.0,85839.0,0.3608]
[1742479346776,0.0582718,85840.0,85839.0,0.4773414]
[1742479347479,0.12716,85855.0,85839.0,0.4773414]
[1742479347687,0.2756025,85849.0,85848.0,0.1747904]
[1742479347883,0.1854202,85855.0,85851.0,0.1165251]
[1742479347884,0.1166037,85852.0,85851.0,0.1165251]
[1742479348277,0.1165237,85852.0,85851.0,0.1165251]
[1742479348577,0.0589268,85877.0,85876.0,0.1164912]
[1742479348775,0.0582468,85877.0,85876.0,0.7216]
[1742479349384,0.0582468,85877.0,85876.0,0.8380912]
[1742479350997,0.0582468,85877.0,85876.0,0.7216]
[1742479351880,0.2843668,85877.0,85876.0,0.8380912]
[1742479352081,0.0988,85877.0,85876.0,0.8380912]
[1742479352284,0.0988,85877.0,85876.0,0.9403912]
[1742479352586,0.1747618,85885.0,85884.0,0.1164803]
[1742479352783,0.2817218,85885.0,85884.0,0.4772803]
[1742479353091,0.0582401,85885.0,85884.0,0.4772803]
[1742479353581,0.1165149,85888.0,85887.0,0.1164763]
[1742479353891,0.0582374,85888.0,85884.0,0.4772798]
[1742479354082,0.116479,85885.0,85884.0,0.3608]
[1742479354593,0.216479,85885.0,85884.0,0.3608]
[1742479354887,0.117679,85885.0,85884.0,0.3608]
[1742479355089,0.116479,85885.0,85884.0,0.3608]
[1742479355983,0.116479,85885.0,85884.0,0.4772803]
[1742479356383,0.2684387,85887.0,85884.0,0.4772803]
[1742479356384,0.3266763,85887.0,85886.0,0.1164776]
[1742479356586,4e-05,85889.0,85888.0,0.1164749]
[1742479356780,0.1746999,85896.0,85895.0,0.1164654]
[1742479356986,0.1746999,85896.0,85895.0,0.4772654]
[1742479357283,0.2843999,85896.0,85895.0,0.4772654]
[1742479357478,0.1039,85897.0,85896.0,0.116464]
[1742479357684,0.116464,85896.0,85895.0,0.5832645]
[1742479357982,0.226164,85896.0,85895.0,0.3608]
[1742479358177,0.1097,85896.0,85895.0,0.3608]
[1742479358378,0.1039,85897.0,85896.0,0.116464]
[1742479358778,0.105,85900.0,85896.0,0.116464]
[1742479358779,0.105,85900.0,85899.0,0.11646]
[1742479359089,0.105,85900.0,85897.0,0.2245624]
[1742479359090,0.1164613,85898.0,85897.0,0.2245624]
[1742479359299,0.1164627,85897.0,85896.0,0.477264]
[1742479359787,0.1164627,85897.0,85896.0,0.585364]
[1742479360091,0.1164627,85897.0,85896.0,0.5853627]
[1742479360289,0.1164627,85897.0,85896.0,0.69686953]
[1742479360479,0.1089,85897.0,85896.0,0.69686953]
[1742479360879,0.105,85900.0,85899.0,0.11646]
[1742479361084,0.10504,85900.0,85899.0,0.11646]
[1742479361286,0.10504,85900.0,85899.0,0.13086683]
[1742479361692,0.14396458,85905.0,85902.0,0.0582273]
[1742479361987,0.0582266,85904.0,85903.0,0.1027]
[1742479362189,0.0582266,85904.0,85903.0,0.5644]
[1742479362594,0.0582235,85909.0,85908.0,0.1164478]
[1742479362990,4e-05,85920.0,85913.0,0.0582198]
[1742479363191,0.1164729,85919.0,85918.0,0.1164342]
[1742479363496,4e-05,85919.0,85916.0,0.0582178]
[1742479363695,4e-05,85919.0,85914.0,0.5656]
[1742479363696,0.1164383,85915.0,85914.0,0.3608]
[1742479364685,0.2164383,85915.0,85914.0,0.3608]
[1742479364994,0.1164383,85915.0,85914.0,0.3608]
[1742479365197,0.1429383,85915.0,85914.0,0.3608]
[1742479365401,0.11962504,85915.0,85914.0,0.3608]
[1742479365602,0.1164383,85915.0,85914.0,0.4772396]
[1742479365893,0.0582156,85921.0,85920.0,0.1746439]
[1742479366292,0.00064,85944.0,85920.0,0.3608]
[1742479366597,0.1164153,85932.0,85931.0,0.3608]
[1742479366794,0.2164153,85932.0,85931.0,0.3608]
[1742479366995,0.1429153,85932.0,85931.0,0.3608]
[1742479367188,0.1164153,85932.0,85931.0,0.3608]
[1742479367600,0.2164153,85932.0,85931.0,0.3608]
[1742479367907,0.1164153,85932.0,85931.0,0.3608]
[1742479368194,0.2153153,85932.0,85931.0,0.4772166]
[1742479368398,0.3608,85950.0,85931.0,0.3608]
[1742479368697,0.1989,85946.0,85932.0,0.4627]
[1742479368998,0.1164081,85938.0,85937.0,0.1164071]
[1742479369296,0.0989,85945.0,85942.0,0.0582002]
[1742479369494,0.0989,85945.0,85943.0,0.1163976]
[1742479369495,0.1018,85944.0,85943.0,0.1163976]
[1742479369699,0.218199,85944.0,85943.0,0.2181976]
[1742479370000,0.218199,85944.0,85943.0,0.2182004]
[1742479370696,4e-05,85947.0,85946.0,0.1163963]
[1742479370888,0.1164349,85947.0,85946.0,0.4771963]
[1742479371787,0.1018,85956.0,85949.0,0.0581959]
[1742479372088,0.1163855,85954.0,85953.0,0.3608]
[1742479372603,0.00060001,85972.0,85953.0,0.50128]
[1742479372900,0.3608,85993.0,85962.0,0.3608]
[1742479372901,0.1163733,85963.0,85962.0,0.3608]
[1742479373097,0.1428733,85963.0,85962.0,0.3608]
[1742479373296,0.1163733,85963.0,85962.0,0.3608]
[1742479373990,0.1163733,85963.0,85954.0,0.05836693]
[1742479373991,0.0581906,85958.0,85954.0,0.00017453]
[1742479374196,0.1163841,85955.0,85954.0,0.00017453]
[1742479374394,0.00068,85986.0,85954.0,0.75195453]
[1742479374593,0.1163957,85976.0,85975.0,0.3608]
[1742479374789,0.1428557,85976.0,85975.0,0.3608]
[1742479374998,0.3572757,85976.0,85975.0,0.3608]
[1742479375298,0.1163841,85955.0,85954.0,0.36097453]
[1742479375492,0.1428841,85955.0,85954.0,0.36097453]
[1742479375997,0.2838441,85955.0,85954.0,0.36097453]
[1742479376199,0.3573441,85955.0,85954.0,0.36097453]
[1742479376386,0.116399,85944.0,85943.0,0.3608]
[1742479376587,0.143499,85944.0,85943.0,0.3608]
[1742479376792,0.142899,85944.0,85943.0,0.3608]
[1742479377186,0.421299,85944.0,85943.0,0.3608]
[1742479377392,0.347799,85944.0,85943.0,0.3608]
[1742479377591,0.347799,85944.0,85942.0,0.27518191]
[1742479377592,0.1164004,85943.0,85942.0,0.27518191]
[1742479377802,0.2164004,85943.0,85942.0,0.27518191]
[1742479377989,0.2237004,85943.0,85942.0,0.27518191]
[1742479378187,0.2237004,85943.0,85942.0,0.1164017]
[1742479378389,0.1164031,85941.0,85940.0,0.1023]
[1742479379199,0.1164031,85941.0,85940.0,0.2187044]
[1742479379497,4e-05,85945.0,85944.0,0.116399]
[1742479379701,0.1163976,85945.0,85944.0,0.116399]
[1742479380506,0.1163976,85945.0,85942.0,0.5354019]
[1742479380507,0.1164004,85943.0,85942.0,0.3608]
[1742479381003,0.1164004,85943.0,85942.0,0.4772017]
[1742479381491,0.0582365,85949.0,85944.0,0.116399]
[1742479381492,0.0581976,85947.0,85944.0,0.116399]
[1742479381801,1e-08,85961.0,85960.0,0.1163773]
[1742479382006,0.0581726,85984.0,85968.0,0.1163665]
[1742479382007,0.058176,85979.0,85968.0,0.1163665]
[1742479382304,0.1164052,85969.0,85968.0,0.3608]
[1742479382496,0.1164052,85969.0,85968.0,0.5793665]
[1742479383105,0.2143052,85969.0,85968.0,0.5793665]
[1742479383291,0.3149052,85969.0,85968.0,0.463]
[1742479383693,0.3149052,85969.0,85968.0,0.3608]
[1742479384300,0.4604252,85969.0,85968.0,0.3608]
[1742479384499,0.2143052,85969.0,85968.0,0.4771665]
[1742479384700,0.1163746,85962.0,85961.0,0.0995]
[1742479384900,0.1163746,85962.0,85960.0,0.36097453]
[1742479384901,0.116376,85961.0,85960.0,0.00017453]
[1742479385109,0.416276,85961.0,85960.0,0.00017453]
[1742479385396,0.461776,85961.0,85960.0,0.00017453]
[1742479385605,0.1163922,85949.0,85948.0,0.3608]
[1742479385805,0.1163922,85949.0,85948.0,0.4771936]
[1742479386504,0.3186922,85949.0,85948.0,0.4771936]
[1742479386698,0.3186922,85949.0,85948.0,0.4617]
[1742479387003,0.3023,85949.0,85943.0,0.41338338]
[1742479387204,0.116399,85944.0,85943.0,0.41338338]
[1742479387501,0.116399,85944.0,85930.0,0.3608]
[1742479387502,0.1164193,85929.0,85911.0,0.00116]
[1742479387691,0.2695993,85929.0,85912.0,0.2044]
[1742479387896,0.4114993,85929.0,85920.0,0.67041332]
[1742479388092,0.1164193,85929.0,85920.0,0.55398182]
[1742479388407,0.1164193,85929.0,85928.0,0.34177121]
[1742479388599,0.1429193,85929.0,85928.0,0.34177121]
[1742479388801,0.3195193,85929.0,85928.0,0.34177121]
[1742479389002,0.2460193,85929.0,85928.0,0.34177121]
[1742479389202,0.4460193,85929.0,85928.0,1e-08]
[1742479389499,0.4460193,85929.0,85900.0,1.17108224]
[1742479389500,0.0582201,85914.0,85900.0,1.17108224]
[1742479389701,0.2164478,85908.0,85901.0,0.1034]
[1742479389915,0.2164478,85908.0,85900.0,1.17108224]
[1742479390792,0.1616478,85908.0,85907.0,0.2376902]
[1742479391001,0.2606478,85908.0,85907.0,0.2376902]
[1742479391205,0.2164478,85908.0,85907.0,0.2376902]
[1742479391397,0.3608878,85908.0,85907.0,0.2376902]
[1742479391799,0.7216878,85908.0,85907.0,0.1020756]
[1742479391996,0.1164559,85902.0,85901.0,0.1033]
[1742479392402,0.1164559,85902.0,85899.0,0.00017453]
[1742479392403,0.1164586,85900.0,85899.0,3e-08]
[1742479392708,0.1164817,85883.0,85879.0,0.3608]
[1742479392907,0.1164857,85880.0,85879.0,0.3608]
[1742479393898,0.0582389,85886.0,85883.0,0.116479]
[1742479394096,0.1171108,85894.0,85892.0,0.1164681]
[1742479394294,4e-05,85910.0,85903.0,0.0582271]
[1742479394598,0.1164851,85910.0,85909.0,0.3608]
[1742479394908,0.1164851,85910.0,85909.0,0.4676]
[1742479395109,0.1164851,85910.0,85909.0,0.5840464]
[1742479395304,4e-05,85910.0,85909.0,0.5840464]
[1742479395610,0.1164851,85910.0,85909.0,0.5840464]
[1742479395801,0.00017464,85918.0,85917.0,0.1164356]
[1742479396000,0.00017464,85918.0,85917.0,1.9772356]
[1742479396195,0.13879276,85927.0,85917.0,1.9772356]
[1742479396400,0.13879276,85927.0,85926.0,0.4772234]
[1742479397506,0.13879276,85927.0,85926.0,0.5755234]
[1742479398006,0.13879276,85927.0,85926.0,0.5765234]
[1742479398396,4e-05,85929.0,85928.0,0.1164207]
[1742479398710,0.17349095,85932.0,85931.0,0.1164166]
[1742479398901,0.1087,85952.0,85926.0,0.60434]
[1742479399102,0.2250882,85952.0,85951.0,0.8379895]
[1742479399298,0.1087,85952.0,85951.0,0.8379895]
[1742479399605,4e-05,85977.0,85951.0,0.8379895]
[1742479399606,0.14424,85966.0,85955.0,0.1163841]
[1742479399811,0.10874,85957.0,85955.0,0.1163841]
[1742479400010,0.1163828,85956.0,85955.0,0.1163841]
[1742479400207,0.1163882,85953.0,85952.0,0.1163841]
[1742479400408,0.1163882,85952.0,85951.0,0.00144]
[1742479400612,0.3862842,85952.0,85951.0,0.1163895]
[1742479401311,0.1163936,85948.0,85947.0,0.00017452]
[1742479401709,0.1163936,85948.0,85947.0,0.11656942]
[1742479402106,0.2117,85952.0,85948.0,0.0581962]
[1742479402309,0.4444825,85952.0,85951.0,0.1163895]
[1742479402511,0.166895,85952.0,85951.0,0.4771895]
[1742479402819,0.1087,85952.0,85951.0,0.4771895]
[1742479403802,4e-05,85954.0,85953.0,0.1163868]
[1742479404913,0.223674,85963.0,85962.0,0.1163746]
[1742479405212,0.00017415,85964.0,85962.0,0.1163746]
[1742479405213,0.00017415,85964.0,85963.0,0.1163733]
[1742479405516,4e-05,85977.0,85974.0,0.1745343]
[1742479405719,0.1163642,85975.0,85974.0,0.1745343]
[1742479406422,0.2195642,85975.0,85974.0,0.1745343]
[1742479406622,0.1163597,85973.0,85972.0,0.1163584]
[1742479406816,0.1163597,85973.0,85972.0,0.2327181]
[1742479407116,0.1163652,85969.0,85968.0,0.3608]
[1742479407811,0.1163652,85969.0,85968.0,0.4771665]
[1742479408312,0.1163652,85969.0,85968.0,0.1163665]
[1742479408510,0.14272,85978.0,85968.0,0.3608]
[1742479408511,0.058182,85970.0,85968.0,0.3608]
[1742479408708,0.058182,85970.0,85969.0,0.3842386]
[1742479408917,0.058182,85970.0,85969.0,0.2678808]
[1742479409216,0.058182,85970.0,85969.0,0.1591808]
[1742479409412,0.1163652,85969.0,85968.0,0.3608]
[1742479409614,0.2240652,85969.0,85968.0,0.3608]
[1742479409808,0.2558652,85969.0,85968.0,0.3608]
[1742479410006,0.4324652,85969.0,85968.0,0.3608]
[1742479410310,0.3642652,85969.0,85968.0,0.3608]
[1742479410519,0.4324652,85969.0,85968.0,0.3608]
[1742479410816,4e-05,85971.0,85968.0,0.3608]
[1742479411121,0.2237652,85970.0,85969.0,0.2173652]
[1742479411321,0.2237652,85970.0,85969.0,0.3243652]
[1742479411710,0.2237652,85970.0,85969.0,0.208]
[1742479411912,0.1163652,85969.0,85968.0,0.3608]
[1742479412114,0.1163909,85950.0,85946.0,0.3608]
[1742479412325,0.1428949,85949.0,85948.0,0.1745881]
[1742479412623,0.2502949,85949.0,85948.0,0.2327838]
[1742479412814,0.2502949,85949.0,85948.0,0.1163909]
[1742479413326,0.1134017,85942.0,85941.0,0.4772031]
[1742479413616,0.1399017,85942.0,85941.0,0.4772031]
[1742479413921,0.1104017,85942.0,85941.0,0.5798031]
[1742479414120,0.1104017,85942.0,85941.0,0.6798031]
[1742479414320,0.2175017,85942.0,85941.0,0.6798031]
[1742479414516,0.2235017,85942.0,85941.0,0.6798031]
[1742479415523,0.2235017,85942.0,85941.0,0.3608]
[1742479415724,0.2235017,85942.0,85941.0,0.4802031]
[1742479415725,0.3321017,85942.0,85941.0,0.4802031]
[1742479415915,0.3321017,85942.0,85941.0,0.5793031]
[1742479416108,0.2235017,85942.0,85941.0,0.5793031]
[1742479416417,0.1071,85942.0,85941.0,0.5793031]
[1742479416610,4e-05,85943.0,85942.0,0.1164017]
[1742479416814,0.0581995,85945.0,85944.0,0.1163976]
[1742479417013,0.0581995,85945.0,85944.0,0.2580376]
[1742479417214,0.1071,85953.0,85947.0,0.0581971]
[1742479417409,0.00060001,85966.0,85965.0,0.1163706]
[1742479417625,4e-05,85972.0,85952.0,0.3608]
[1742479417626,0.1163746,85963.0,85962.0,0.1163746]
[1742479417822,0.1163746,85963.0,85962.0,0.4771746]
[1742479418123,0.2160746,85963.0,85962.0,0.3608]
[1742479418309,0.1163746,85963.0,85962.0,0.4771746]
[1742479418514,0.381154,85971.0,85970.0,0.1163638]
[1742479418715,0.2647837,85971.0,85970.0,0.1163638]
[1742479418926,0.1578837,85971.0,85970.0,0.4771638]
[1742479419523,0.1578837,85971.0,85970.0,0.3608]
[1742479419723,0.1578837,85971.0,85970.0,0.4771638]
[1742479420323,0.1628837,85971.0,85970.0,0.4771638]
[1742479420921,0.2608837,85971.0,85970.0,0.3608]
[1742479421124,0.1873837,85971.0,85970.0,0.3608]
[1742479421627,0.0611837,85971.0,85970.0,0.4771638]
[1742479421823,0.0611837,85971.0,85958.0,0.0581894]
[1742479421824,0.0581859,85965.0,85961.0,0.058188]
[1742479422030,0.1745626,85962.0,85961.0,0.3608]
[1742479422229,0.1745626,85962.0,85961.0,0.477176]
[1742479422435,0.3824626,85962.0,85961.0,0.477176]
[1742479423014,0.0581904,85958.0,85951.0,0.3608]
[1742479423219,0.0581904,85958.0,85945.0,0.0581986]
[1742479423220,0.1428841,85955.0,85945.0,0.0581986]
[1742479423427,0.1163976,85945.0,85944.0,0.4771937]
[1742479423731,0.1746019,85943.0,85942.0,0.1164005]
[1742479424533,0.0582002,85945.0,85943.0,0.1163937]
[1742479424824,0.1163928,85950.0,85946.0,0.0581978]
[1742479425131,0.11656402,85951.0,85950.0,0.1163909]
[1742479425327,0.00017452,85951.0,85950.0,0.1163909]
[1742479425821,0.11656402,85951.0,85950.0,0.1163909]
[1742479426434,0.00017452,85951.0,85950.0,0.1163909]
[1742479426628,0.11656402,85951.0,85950.0,0.1163909]
[1742479427026,0.11756402,85951.0,85950.0,0.1163909]
[1742479427329,0.00117452,85951.0,85950.0,0.1163909]
[1742479427517,0.11177452,85951.0,85950.0,0.1163909]
[1742479427720,0.22816402,85951.0,85950.0,0.1163909]
[1742479427916,0.1746,85947.0,85946.0,0.0581961]
[1742479428532,0.116399,85944.0,85943.0,0.0581999]
[1742479428926,0.329299,85944.0,85943.0,0.0581999]
[1742479429123,0.2129,85944.0,85943.0,0.1652999]
[1742479429531,0.329299,85944.0,85943.0,0.1652999]
[1742479430026,0.2129,85944.0,85943.0,0.1652999]
[1742479430431,0.329299,85944.0,85943.0,0.1652999]
[1742479431434,0.2129,85944.0,85943.0,0.1652999]
[1742479431623,0.329299,85944.0,85943.0,0.1652999]
[1742479432325,0.1746025,85942.0,85941.0,0.1164031]
[1742479432827,0.3884025,85942.0,85941.0,0.1164031]
[1742479433028,0.1164085,85937.0,85936.0,0.1164053]
[1742479433535,0.3223085,85937.0,85936.0,0.1164053]
[1742479433837,0.1164112,85935.0,85927.0,0.3608]
[1742479434233,0.3223112,85935.0,85933.0,0.1164132]
[1742479434531,0.3223112,85935.0,85934.0,0.11658702]
[1742479434735,0.3203112,85935.0,85934.0,0.21998702]
[1742479435137,0.2059,85935.0,85934.0,0.21998702]
[1742479435432,0.17418612,85951.0,85944.0,0.116399]
[1742479435626,0.11124,85945.0,85944.0,0.477199]
[1742479435828,0.1026,85950.0,85949.0,0.1163922]
[1742479436126,0.2138,85950.0,85949.0,0.1163922]
[1742479436326,0.00017452,85951.0,85950.0,0.1163909]
[1742479436832,0.00021452,85951.0,85950.0,0.3315909]
[1742479437239,0.00021452,85951.0,85950.0,0.4740709]
[1742479437836,0.1112,85963.0,85962.0,0.1163746]
[1742479438037,0.1112,85963.0,85962.0,0.4771746]
[1742479438237,0.1112,85963.0,85962.0,0.6972746]
[1742479438627,0.2275733,85963.0,85962.0,0.3608]
[1742479438830,0.3275733,85963.0,85962.0,0.3608]
[1742479439140,0.3275733,85963.0,85952.0,0.1117]
[1742479439141,0.1163841,85955.0,85954.0,0.59374362]
[1742479439336,0.1163841,85955.0,85954.0,0.36097452]
[1742479439542,0.1163841,85955.0,85954.0,0.00017452]
[1742479439927,0.3331841,85955.0,85954.0,0.22186002]
[1742479440126,0.1105,85955.0,85954.0,0.22186002]
[1742479440330,0.2268841,85955.0,85954.0,0.33356002]
[1742479441330,0.3331841,85955.0,85954.0,0.33356002]
[1742479441832,0.3331841,85955.0,85954.0,0.00017452]
[1742479442027,0.3331841,85955.0,85954.0,0.11656002]
[1742479442438,4e-05,85956.0,85955.0,0.1163841]
[1742479442642,0.1164228,85956.0,85955.0,0.2187841]
[1742479442943,0.1163841,85955.0,85954.0,0.00017452]
[1742479443129,0.2195841,85955.0,85954.0,0.00017452]
[1742479443443,0.2195841,85955.0,85954.0,0.11656002]
[1742479443739,0.2195841,85955.0,85954.0,0.33006002]
[1742479444247,0.2195841,85955.0,85954.0,0.11656002]
[1742479444543,0.2195841,85955.0,85954.0,0.32116002]
[1742479445331,0.1032,85955.0,85954.0,0.32116002]
[1742479445533,0.002,85955.0,85954.0,0.32116002]
[1742479445733,0.1183841,85955.0,85954.0,0.21896002]
[1742479445944,0.2243841,85955.0,85954.0,0.10257452]
[1742479446242,0.1164017,85942.0,85938.0,0.3608]
[1742479446542,0.1164098,85937.0,85936.0,0.1164094]
[1742479446741,0.002,85955.0,85936.0,0.5666]
[1742479447049,0.1163868,85953.0,85952.0,0.3608]
[1742479447245,0.1163868,85953.0,85952.0,0.4771882]
[1742479447448,0.1116,85953.0,85952.0,0.4771882]
[1742479447742,0.1013,85958.0,85952.0,0.4189934]
[1742479447934,0.00017452,85961.0,85958.0,0.11638]
[1742479448134,4e-05,85971.0,85970.0,0.1163638]
[1742479448343,0.1164024,85971.0,85970.0,0.4771638]
[1742479449043,0.3302024,85971.0,85970.0,0.3608]
[1742479449245,0.3302024,85971.0,85970.0,0.4771638]
[1742479449643,0.3302024,85971.0,85970.0,0.5855638]
[1742479450152,0.2280024,85971.0,85970.0,0.5855638]
[1742479450352,0.1164024,85971.0,85970.0,0.5855638]
[1742479450844,0.1163624,85971.0,85970.0,0.5855638]
[1742479451151,0.1193624,85971.0,85970.0,0.5855638]
[1742479451647,0.2214624,85971.0,85970.0,0.5855638]
[1742479451947,0.2214624,85971.0,85970.0,0.4771638]
[1742479452152,0.3281624,85971.0,85970.0,0.3608]
[1742479452355,0.3281624,85971.0,85970.0,0.4771638]
[1742479454151,0.3281624,85971.0,85970.0,0.3608]
[1742479454849,0.3293624,85971.0,85970.0,0.3608]
[1742479455047,0.3281624,85971.0,85970.0,0.3608]
[1742479455242,0.4281624,85971.0,85970.0,0.3608]
[1742479455445,0.4281624,85971.0,85962.0,0.00017452]
[1742479455446,0.1163733,85963.0,85962.0,0.00017452]